[Event "LTU-chT 2020"]
[Site "Vilnius"]
[Date "2020.09.26"]
[Round "4.8"]
[White "Pilipuitis, Mantas"]
[Black "Steponavicius, Stasys"]
[Result "0-1"]
[ECO "B34"]
[WhiteElo "1837"]
[BlackElo "2191"]
[Annotator "NA"]
[PlyCount "80"]
[EventDate "2020.09.25"]
[EventType "team-tourn"]
[EventCountry "LTU"]
[SourceTitle "playchess.com"]
[Source "ChessBase"]
[SourceQuality "1"]
[TimeControl "40/5400+30:1800+30"]

1. e4 {[%emt 0:00:00]} c5 {[%emt 0:00:00]} 2. Nf3 {[%emt 0:00:00]} Nc6 {[%emt 0:00:00]} 3. d4 {[%emt 0:00:00]} cxd4 {[%emt 0:00:00]} 4. Nxd4 {[%emt 0:00:00]} Nf6 {[%emt 0:00:11]} 5. Nc3 {[%emt 0:00:07]} e5 {[%emt 0:00:07]} 6. Ndb5 {[%emt 0:00:26]} d6 {[%emt 0:00:07]} 7. Bg5 {[%emt 0:00:35]} a6 {[%emt 0:00:07]} 8. Bxf6 {[%emt 0:00:26]} gxf6 {[%emt 0:00:11]} 9. Na3 {[%emt 0:00:05]} Be6 {[%emt 0:02:48]} 10. Nd5 {[%emt 0:01:32]} f5 {[%emt 0:02:34]} 11. exf5 {[%emt 0:01:14]} Qa5+ {[%emt 0:01:37]} 12. Nc3 {[%emt 0:00:07]} Bxf5 {[%emt 0:00:08]} 13. Nc4 {[%emt 0:00:27]} Qd8 {[%emt 0:03:20]} 14. Ne3 {[%emt 0:01:50]} Be6 {[%emt 0:01:03]} 15. Ncd5 {[%emt 0:00:21]} Bh6 {[%emt 0:00:54]} 16. Bc4 {[%emt 0:01:32]} Bxe3 {[%emt 0:02:37]} 17. Nxe3 {[%emt 0:00:33]} Bxc4 {[%emt 0:00:11]} 18. Nxc4 {[%emt 0:00:09]} d5 {[%emt 0:00:11]} 19. Ne3 {[%emt 0:01:47]} d4 {[%emt 0:00:21]} 20. Nf5 {[%emt 0:00:21]} Qd5 {[%emt 0:01:42]} 21. O-O {[%emt 0:03:49]} O-O-O {[%emt 0:02:56]} 22. Qe2 {[%emt 0:02:19]} Rhg8 {[%emt 0:09:00]} 23. f4 {[%emt 0:00:23]} e4 {[%emt 0:00:48]} 24. Ng3 {[%emt 0:00:29]} f5 {[%emt 0:01:34]} 25. Qh5 {[%emt 0:00:45]} Rdf8 {[%emt 0:01:31]} 26. Rfe1 {[%emt 0:00:50]} Qd7 {[%emt 0:05:18]} 27. a3 {[%emt 0:03:53]} Rg4 {[%emt 0:07:40]} 28. Rad1 {[%emt 0:01:25]} Rg6 {[%emt 0:12:48]} 29. Kh1 {[%emt 0:01:07]} Rff6 {[%emt 0:02:05]} 30. Rd2 {[%emt 0:01:32]} Rh6 {[%emt 0:05:01]} 31. Qg5 {[%emt 0:00:10]} Qf7 {[%emt 0:05:41]} 32. c3 {[%emt 0:01:12]} Ne7 {[%emt 0:07:49]} 33. Nxe4 {[%emt 0:01:42]} fxe4 {[%emt 0:00:27]} 34. Rxe4 {[%emt 0:00:48]} Nf5 {[%emt 0:00:38]} 35. Re5 {[%emt 0:02:16]} Rhg6 {[%emt 0:00:56]} 36. Qh5 {[%emt 0:00:23]} Ng3+ {[%emt 0:00:40]} 37. hxg3 {[%emt 0:00:06]} Rh6 {[%emt 0:00:06]} 38. Qxh6 {[%emt 0:00:16]} Rxh6+ {[%emt 0:00:09]} 39. Kg1 {[%emt 0:00:04]} dxc3 {[%emt 0:00:33]} 40. bxc3 {[%emt 0:00:11]} Rc6 {[%emt 0:01:10]} 0-1

[Event "LTU-chT 2020"]
[Site "Vilnius"]
[Date "2020.09.26"]
[Round "4.9"]
[White "Miknevicius, Laurynas"]
[Black "Bazilius, Augustinas"]
[Result "1-0"]
[ECO "D85"]
[WhiteElo "2192"]
[BlackElo "1642"]
[Annotator "ChessBase"]
[PlyCount "131"]
[EventDate "2020.09.25"]
[EventType "team-tourn"]
[EventCountry "LTU"]
[SourceTitle "playchess.com"]
[Source "ChessBase"]
[SourceQuality "1"]
[TimeControl "40/5400+30:1800+30"]

1. d4 {[%emt 0:00:00]} Nf6 {[%emt 0:00:00]} 2. c4 {[%emt 0:00:00]} g6 {[%emt 0:00:30]} 3. Nc3 {[%emt 0:00:15]} d5 {[%emt 0:00:01]} 4. cxd5 {[%emt 0:00:06]} Nxd5 {[%emt 0:00:09]} 5. e4 {[%emt 0:00:03]} Nxc3 {[%emt 0:00:08]} 6. bxc3 {[%emt 0:00:04]} Bg7 {[%emt 0:00:07]} 7. Nf3 {[%emt 0:00:06]} c5 {[%emt 0:00:07]} 8. Rb1 {[%emt 0:00:04]} O-O {[%emt 0:00:18]} 9. Be2 {[%emt 0:00:02]} cxd4 {[%emt 0:00:30]} 10. cxd4 {[%emt 0:00:06]} Qa5+ {[%emt 0:00:07]} 11. Bd2 {[%emt 0:01:06]} Qxa2 {[%emt 0:00:52]} 12. O-O {[%emt 0:00:03]} Bg4 {[%emt 0:00:24]} 13. Bg5 {[%emt 0:00:07]} h6 {[%emt 0:03:15]} 14. Be3 {[%emt 0:00:31]} Nc6 {[%emt 0:02:49]} 15. Rxb7 {[%emt 0:03:35]} Rab8 {[%emt 0:30:52]} 16. Rxb8 {[%emt 0:06:57]} Rxb8 {[%emt 0:01:13]} 17. Re1 {[%emt 0:00:03]} Rb2 {[%emt 0:01:44]} 18. h3 {[%emt 0:08:51]} Bxf3 {[%emt 0:03:08]} 19. Bxf3 {[%emt 0:00:07]} Nxd4 {[%emt 0:01:34]} 20. e5 {[%emt 0:07:21]} Bxe5 {[%emt 0:07:01]} 21. Bxd4 {[%emt 0:00:52]} Rd2 {[%emt 0:01:13]} 22. Bxe5 {[%emt 0:00:07]} Rxd1 {[%emt 0:00:08]} 23. Rxd1 {[%emt 0:00:09]} Qa5 {[%emt 0:00:31]} 24. Rd5 {[%emt 0:05:35]} Qb6 {[%emt 0:03:58]} 25. Bd4 {[%emt 0:01:40]} Qb1+ {[%emt 0:00:31]} 26. Kh2 {[%emt 0:00:04]} Qb8+ {[%emt 0:00:55]} 27. g3 {[%emt 0:04:43]} Qc7 {[%emt 0:01:42]} 28. Kg2 {[%emt 0:01:04]} f6 {[%emt 0:01:25]} 29. Be3 {[%emt 0:00:44]} Kg7 {[%emt 0:00:51]} 30. Rb5 {[%emt 0:00:05]} a5 {[%emt 0:03:02]} 31. Bc5 {[%emt 0:00:40]} Kf8 {[%emt 0:04:27]} 32. Be3 {[%emt 0:02:58]} Kg7 {[%emt 0:03:35]} 33. Rb7 {[%emt 0:00:11]} Qd6 {[%emt 0:00:23]} 34. Ra7 {[%emt 0:00:08]} Qb4 {[%emt 0:04:36]} 35. Rb7 {[%emt 0:00:19]} Qd6 {[%emt 0:00:18]} 36. Bb6 {[%emt 0:00:12]} a4 {[%emt 0:01:09]} 37. Ba5 {[%emt 0:01:04]} Kf7 {[%emt 0:10:35]} 38. Bb4 {[%emt 0:00:23]} Qe6 {[%emt 0:00:48]} 39. Rxe7+ {[%emt 0:00:18]} Qxe7 {[%emt 0:00:07]} 40. Bxe7 {[%emt 0:00:04]} Kxe7 {[%emt 0:00:05]} 41. Bd5 {[%emt 0:30:13]} Kd6 {[%emt 0:30:10]} 42. Bf7 {[%emt 0:00:04]} a3 {[%emt 0:00:36]} 43. Kf3 {[%emt 0:00:05]} Kc5 {[%emt 0:00:13]} 44. Ke4 {[%emt 0:00:16]} Kb4 {[%emt 0:00:37]} 45. Kd4 {[%emt 0:00:06]} g5 {[%emt 0:00:11]} 46. Ke4 {[%emt 0:00:36]} Kc3 {[%emt 0:00:28]} 47. h4 {[%emt 0:01:43]} Kd2 {[%emt 0:00:18]} 48. f4 {[%emt 0:02:45]} gxh4 {[%emt 0:01:33]} 49. gxh4 {[%emt 0:00:03]} h5 {[%emt 0:01:00]} 50. Bc4 {[%emt 0:01:16]} Kc3 {[%emt 0:03:17]} 51. Bd5 {[%emt 0:00:29]} Kd2 {[%emt 0:02:19]} 52. Kf5 {[%emt 0:00:05]} Ke3 {[%emt 0:00:45]} 53. Bf7 {[%emt 0:00:02]} Kf3 {[%emt 0:01:22]} 54. Bxh5+ {[%emt 0:00:05]} Kg3 {[%emt 0:00:07]} 55. Bf7 {[%emt 0:00:04]} Kxh4 {[%emt 0:00:06]} 56. Kxf6 {[%emt 0:00:09]} Kg4 {[%emt 0:00:36]} 57. f5 {[%emt 0:00:06]} Kf4 {[%emt 0:00:09]} 58. Ba2 {[%emt 0:00:22]} Ke4 {[%emt 0:00:27]} 59. Ke6 {[%emt 0:00:14]} Kd3 {[%emt 0:00:04]} 60. f6 {[%emt 0:00:10]} Kc2 {[%emt 0:00:13]} 61. f7 {[%emt 0:00:10]} Kb2 {[%emt 0:01:05]} 62. Bd5 {[%emt 0:00:09]} Ka1 {[%emt 0:03:28]} 63. f8=Q {[%emt 0:03:24]} Kb2 {[%emt 0:00:00]} 64. Qb4+ {[%emt 0:00:12]} Kc1 {[%emt 0:00:00]} 65. Qc3+ {[%emt 0:00:37]} Kd1 {[%emt 0:00:00]} 66. Bf3# {[%emt 0:00:05]} 1-0

[Event "LTU-chT 2020"]
[Site "Vilnius"]
[Date "2020.09.26"]
[Round "4.10"]
[White "Viliamas, Dovydas"]
[Black "Tamosiunas, Tomas"]
[Result "1/2-1/2"]
[ECO "E11"]
[WhiteElo "1554"]
[BlackElo "1969"]
[Annotator "NA"]
[PlyCount "67"]
[EventDate "2020.09.25"]
[EventType "team-tourn"]
[EventCountry "LTU"]
[SourceTitle "playchess.com"]
[Source "ChessBase"]
[SourceQuality "1"]
[TimeControl "40/5400+30:1800+30"]

1. d4 {[%emt 0:00:00]} Nf6 {[%emt 0:00:00]} 2. c4 {[%emt 0:00:00]} e6 {[%emt 0:00:00]} 3. Nf3 {[%emt 0:00:13]} Bb4+ {[%emt 0:00:20]} 4. Bd2 {[%emt 0:01:12]} Bxd2+ {[%emt 0:00:21]} 5. Nbxd2 {[%emt 0:02:23]} O-O {[%emt 0:00:39]} 6. e3 {[%emt 0:00:27]} d6 {[%emt 0:00:06]} 7. Qc2 {[%emt 0:03:30]} Qe7 {[%emt 0:00:18]} 8. Be2 {[%emt 0:01:18]} e5 {[%emt 0:00:44]} 9. dxe5 {[%emt 0:04:33]} dxe5 {[%emt 0:00:06]} 10. O-O {[%emt 0:03:48]} Nc6 {[%emt 0:00:43]} 11. Nb3 {[%emt 0:04:58]} Bg4 {[%emt 0:08:40]} 12. a3 {[%emt 0:07:02]} a5 {[%emt 0:10:55]} 13. Rad1 {[%emt 0:07:56]} a4 {[%emt 0:00:43]} 14. Nc1 {[%emt 0:01:38]} e4 {[%emt 0:11:06]} 15. Nd4 {[%emt 0:00:49]} Nxd4 {[%emt 0:02:31]} 16. Rxd4 {[%emt 0:01:29]} c5 {[%emt 0:00:40]} 17. Rd2 {[%emt 0:01:38]} Bd7 {[%emt 0:03:52]} 18. Rfd1 {[%emt 0:02:37]} Bc6 {[%emt 0:00:26]} 19. Rd6 {[%emt 0:02:25]} Rfd8 {[%emt 0:01:59]} 20. Qd2 {[%emt 0:01:41]} Rxd6 {[%emt 0:00:13]} 21. Qxd6 {[%emt 0:00:08]} Qxd6 {[%emt 0:00:06]} 22. Rxd6 {[%emt 0:00:06]} Kf8 {[%emt 0:00:40]} 23. Na2 {[%emt 0:01:44]} Ke7 {[%emt 0:00:25]} 24. Rd2 {[%emt 0:00:57]} b6 {[%emt 0:08:42]} 25. Nc3 {[%emt 0:01:35]} h6 {[%emt 0:11:26]} 26. f3 {[%emt 0:05:09]} Ke6 {[%emt 0:04:40]} 27. Kf2 {[%emt 0:01:56]} g5 {[%emt 0:05:45]} 28. fxe4 {[%emt 0:04:45]} Nxe4+ {[%emt 0:00:57]} 29. Nxe4 {[%emt 0:00:07]} Bxe4 {[%emt 0:00:03]} 30. Bf3 {[%emt 0:00:22]} f5 {[%emt 0:02:06]} 31. Bxe4 {[%emt 0:06:58]} fxe4 {[%emt 0:00:05]} 32. Kg3 {[%emt 0:00:08]} b5 {[%emt 0:07:54]} 33. cxb5 {[%emt 0:06:27]} Rb8 {[%emt 0:03:27]} 34. Rc2 {[%emt 0:07:41]} 1/2-1/2

[Event "LTU-chT 2020"]
[Site "Vilnius"]
[Date "2020.09.26"]
[Round "5.1"]
[White "Sulskis, Sarunas"]
[Black "Laurusas, Tomas"]
[Result "0-1"]
[ECO "B40"]
[WhiteElo "2524"]
[BlackElo "2503"]
[Annotator "ChessBase"]
[PlyCount "132"]
[EventDate "2020.09.25"]
[EventType "team-tourn"]
[EventCountry "LTU"]
[SourceTitle "playchess.com"]
[Source "ChessBase"]
[SourceQuality "1"]
[TimeControl "40/5400+30:1800+30"]

1. e4 {[%emt 0:00:00]} c5 {[%emt 0:01:21]} 2. Nf3 {[%emt 0:00:20]} e6 {[%emt 0:00:55]} 3. g3 {[%emt 0:02:38]} Nc6 {[%emt 0:05:12]} 4. Bg2 {[%emt 0:01:28]} Nf6 {[%emt 0:00:13]} 5. d3 {[%emt 0:03:50]} d6 {[%emt 0:03:55]} 6. O-O {[%emt 0:04:50]} Be7 {[%emt 0:01:47]} 7. c4 {[%emt 0:05:48]} O-O {[%emt 0:01:45]} 8. Nc3 {[%emt 0:01:20]} a6 {[%emt 0:06:28]} 9. d4 {[%emt 0:08:25]} cxd4 {[%emt 0:04:03]} 10. Nxd4 {[%emt 0:00:15]} Bd7 {[%emt 0:01:55]} 11. a4 {[%emt 0:07:38]} Qb6 {[%emt 0:17:32]} 12. Nxc6 {[%emt 0:09:44]} Bxc6 {[%emt 0:02:45]} 13. b3 {[%emt 0:01:50]} Qc7 {[%emt 0:04:26]} 14. Re1 {[%emt 0:04:33]} b6 {[%emt 0:07:16]} 15. Ra2 {[%emt 0:01:29]} Rab8 {[%emt 0:01:34]} 16. Bf4 {[%emt 0:04:26]} Rfd8 {[%emt 0:03:17]} 17. Rd2 {[%emt 0:02:35]} Ne8 {[%emt 0:01:03]} 18. Rc2 {[%emt 0:04:27]} Ba8 {[%emt 0:00:58]} 19. Be3 {[%emt 0:05:10]} Nf6 {[%emt 0:01:04]} 20. f4 {[%emt 0:01:16]} Rbc8 {[%emt 0:01:00]} 21. Qe2 {[%emt 0:05:59]} Qb8 {[%emt 0:00:42]} 22. Bf2 {[%emt 0:00:31]} Bf8 {[%emt 0:01:38]} 23. h3 {[%emt 0:04:54]} h6 {[%emt 0:08:50]} 24. Rd1 {[%emt 0:00:51]} Bc6 {[%emt 0:00:44]} 25. Kh2 {[%emt 0:03:17]} Nd7 {[%emt 0:01:17]} 26. b4 {[%emt 0:02:48]} Ba8 {[%emt 0:01:16]} 27. Rdc1 {[%emt 0:00:45]} Qc7 {[%emt 0:01:20]} 28. Nd1 {[%emt 0:01:32]} a5 {[%emt 0:00:35]} 29. bxa5 {[%emt 0:04:30]} bxa5 {[%emt 0:00:06]} 30. c5 {[%emt 0:01:00]} Nxc5 {[%emt 0:01:36]} 31. Bxc5 {[%emt 0:02:29]} dxc5 {[%emt 0:00:03]} 32. Nc3 {[%emt 0:00:10]} Bc6 {[%emt 0:02:58]} 33. Nb5 {[%emt 0:00:31]} Qd7 {[%emt 0:00:57]} 34. e5 {[%emt 0:00:37]} Bxg2 {[%emt 0:02:04]} 35. Qxg2 {[%emt 0:01:11]} Qd3 {[%emt 0:01:14]} 36. Rc3 {[%emt 0:01:36]} Qd5 {[%emt 0:00:32]} 37. Qe2 {[%emt 0:01:15]} Rd7 {[%emt 0:00:32]} 38. Rc4 {[%emt 0:00:50]} Rcd8 {[%emt 0:05:04]} 39. Nc3 {[%emt 0:00:21]} Qd3 {[%emt 0:00:03]} 40. Qxd3 {[%emt 0:01:58]} Rxd3 {[%emt 0:00:06]} 41. Ne4 {[%emt 0:30:31]} Ra3 {[%emt 0:14:34]} 42. h4 {[%emt 0:00:00]} h5 {[%emt 0:01:33]} 43. R1c2 {[%emt 0:00:00]} Kh7 {[%emt 0:02:55]} 44. Nd6 {[%emt 0:00:00]} Kg6 {[%emt 0:05:36]} 45. Rd2 {[%emt 0:00:00]} f6 {[%emt 0:01:05]} 46. Rxc5 {[%emt 0:00:00]} Rxa4 {[%emt 0:00:14]} 47. Rc6 {[%emt 0:00:00]} Ra1 {[%emt 0:02:42]} 48. Re2 {[%emt 0:00:00]} a4 {[%emt 0:04:15]} 49. Nc4 {[%emt 0:00:00]} a3 {[%emt 0:01:36]} 50. exf6 {[%emt 0:00:00]} gxf6 {[%emt 0:00:38]} 51. Rcxe6 {[%emt 0:00:00]} Ra8 {[%emt 0:01:49]} 52. Ne5+ {[%emt 0:01:45]} Kg7 {[%emt 0:03:28]} 53. Nd7 {[%emt 0:00:27]} a2 {[%emt 0:02:50]} 54. Nxf6 {[%emt 0:00:20]} Rh1+ {[%emt 0:00:29]} 55. Kxh1 {[%emt 0:00:41]} a1=Q+ {[%emt 0:00:02]} 56. Kg2 {[%emt 0:00:11]} Ra5 {[%emt 0:00:44]} 57. Nd7 {[%emt 0:02:45]} Bb4 {[%emt 0:00:59]} 58. Ne5 {[%emt 0:01:00]} Qd1 {[%emt 0:00:19]} 59. Nf3 {[%emt 0:01:25]} Ra1 {[%emt 0:00:08]} 60. Nh2 {[%emt 0:00:30]} Qg1+ {[%emt 0:00:31]} 61. Kh3 {[%emt 0:00:24]} Ra3 {[%emt 0:01:49]} 62. Rg2 {[%emt 0:00:17]} Qc5 {[%emt 0:00:16]} 63. Rge2 {[%emt 0:00:38]} Qf5+ {[%emt 0:00:20]} 64. Kg2 {[%emt 0:00:06]} Qd3 {[%emt 0:00:14]} 65. R6e3 {[%emt 0:01:31]} Qxe3 {[%emt 0:00:15]} 66. Rxe3 {[%emt 0:00:06]} Rxe3 {[%emt 0:00:03]} 0-1

[Event "LTU-chT 2020"]
[Site "Vilnius"]
[Date "2020.09.26"]
[Round "5.2"]
[White "Pultinevicius, Paulius"]
[Black "Bieliauskas, Marius"]
[Result "1/2-1/2"]
[ECO "A35"]
[WhiteElo "2510"]
[BlackElo "2207"]
[Annotator "ChessBase"]
[PlyCount "94"]
[EventDate "2020.09.25"]
[EventType "team-tourn"]
[EventCountry "LTU"]
[SourceTitle "playchess.com"]
[Source "ChessBase"]
[SourceQuality "1"]
[TimeControl "40/5400+30:1800+30"]

1. Nf3 {[%emt 0:00:00]} c5 {[%emt 0:01:22]} 2. c4 {[%emt 0:01:01]} Nf6 {[%emt 0:02:16]} 3. Nc3 {[%emt 0:00:06]} Nc6 {[%emt 0:00:59]} 4. e3 {[%emt 0:00:06]} g6 {[%emt 0:03:31]} 5. d4 {[%emt 0:00:15]} cxd4 {[%emt 0:00:08]} 6. exd4 {[%emt 0:00:02]} d5 {[%emt 0:00:22]} 7. cxd5 {[%emt 0:00:04]} Nxd5 {[%emt 0:00:07]} 8. Qb3 {[%emt 0:00:02]} Nxc3 {[%emt 0:00:45]} 9. Bc4 {[%emt 0:00:06]} Nd5 {[%emt 0:00:13]} 10. Bxd5 {[%emt 0:00:05]} e6 {[%emt 0:00:23]} 11. Bxc6+ {[%emt 0:00:04]} bxc6 {[%emt 0:00:01]} 12. O-O {[%emt 0:00:09]} f6 {[%emt 0:03:41]} 13. Bf4 {[%emt 0:04:00]} Qd5 {[%emt 0:03:03]} 14. Rfc1 {[%emt 0:30:14]} Be7 {[%emt 0:12:42]} 15. Qxd5 {[%emt 0:14:45]} cxd5 {[%emt 0:00:14]} 16. Nd2 {[%emt 0:00:03]} Kf7 {[%emt 0:05:35]} 17. Rc7 {[%emt 0:01:00]} Rd8 {[%emt 0:04:22]} 18. Rac1 {[%emt 0:00:10]} g5 {[%emt 0:12:42]} 19. Bg3 {[%emt 0:01:25]} Bd7 {[%emt 0:06:24]} 20. Rb7 {[%emt 0:00:11]} Bc8 {[%emt 0:00:41]} 21. Rbc7 {[%emt 0:00:41]} Bd7 {[%emt 0:00:04]} 22. Nb3 {[%emt 0:00:21]} Ke8 {[%emt 0:05:13]} 23. Nc5 {[%emt 0:16:28]} Bxc5 {[%emt 0:04:01]} 24. R7xc5 {[%emt 0:03:35]} Rdc8 {[%emt 0:01:00]} 25. Bc7 {[%emt 0:00:08]} a6 {[%emt 0:03:33]} 26. f3 {[%emt 0:04:37]} Kf7 {[%emt 0:02:45]} 27. Kf2 {[%emt 0:00:08]} h5 {[%emt 0:00:51]} 28. Ke3 {[%emt 0:00:26]} Kg6 {[%emt 0:00:31]} 29. Kd2 {[%emt 0:00:20]} g4 {[%emt 0:04:10]} 30. R1c3 {[%emt 0:07:29]} Kf5 {[%emt 0:02:10]} 31. Ra3 {[%emt 0:06:34]} Bb5 {[%emt 0:02:45]} 32. Ke3 {[%emt 0:01:36]} Be8 {[%emt 0:06:27]} 33. Raa5 {[%emt 0:00:16]} Ra7 {[%emt 0:04:31]} 34. Bb6 {[%emt 0:01:15]} Rxc5 {[%emt 0:00:37]} 35. dxc5 {[%emt 0:00:08]} Ra8 {[%emt 0:00:30]} 36. a4 {[%emt 0:01:27]} e5 {[%emt 0:01:15]} 37. b4 {[%emt 0:00:16]} d4+ {[%emt 0:01:01]} 38. Kf2 {[%emt 0:01:55]} gxf3 {[%emt 0:00:33]} 39. gxf3 {[%emt 0:01:54]} Bc6 {[%emt 0:01:29]} 40. b5 {[%emt 0:04:01]} axb5 {[%emt 0:00:27]} 41. Rxa8 {[%emt 0:30:04]} Bxa8 {[%emt 0:30:05]} 42. axb5 {[%emt 0:00:03]} Bd5 {[%emt 0:00:37]} 43. c6 {[%emt 0:00:05]} Ke6 {[%emt 0:02:59]} 44. Bc5 {[%emt 0:00:14]} Kf5 {[%emt 0:01:58]} 45. Kg3 {[%emt 0:00:54]} Kg5 {[%emt 0:01:53]} 46. Kf2 {[%emt 0:01:17]} Kf5 {[%emt 0:01:18]} 47. Kg3 {[%emt 0:00:09]} Kg5 {[%emt 0:00:04]} 1/2-1/2

[Event "LTU-chT 2020"]
[Site "Vilnius"]
[Date "2020.09.26"]
[Round "5.3"]
[White "Steponavicius, Stasys"]
[Black "Krivonosov, Oleg"]
[Result "1-0"]
[ECO "D31"]
[WhiteElo "2191"]
[BlackElo "2381"]
[Annotator "ChessBase"]
[PlyCount "85"]
[EventDate "2020.09.25"]
[EventType "team-tourn"]
[EventCountry "LTU"]
[SourceTitle "playchess.com"]
[Source "ChessBase"]
[SourceQuality "1"]
[TimeControl "40/5400+30:1800+30"]

1. d4 {[%emt 0:00:00]} d5 {[%emt 0:00:00]} 2. c4 {[%emt 0:00:00]} e6 {[%emt 0:00:00]} 3. Nc3 {[%emt 0:00:00]} Be7 {[%emt 0:00:00]} 4. cxd5 {[%emt 0:00:44]} exd5 {[%emt 0:00:00]} 5. Bf4 {[%emt 0:00:21]} c6 {[%emt 0:00:15]} 6. e3 {[%emt 0:00:25]} Bd6 {[%emt 0:00:14]} 7. Nge2 {[%emt 0:00:54]} Ne7 {[%emt 0:01:13]} 8. Bxd6 {[%emt 0:01:30]} Qxd6 {[%emt 0:00:06]} 9. Ng3 {[%emt 0:00:08]} Nd7 {[%emt 0:02:43]} 10. Bd3 {[%emt 0:00:15]} Nf6 {[%emt 0:00:10]} 11. Qc2 {[%emt 0:00:17]} O-O {[%emt 0:00:44]} 12. O-O-O {[%emt 0:00:50]} Bd7 {[%emt 0:01:19]} 13. Kb1 {[%emt 0:00:53]} c5 {[%emt 0:03:24]} 14. dxc5 {[%emt 0:00:27]} Qxc5 {[%emt 0:00:06]} 15. e4 {[%emt 0:00:13]} dxe4 {[%emt 0:04:22]} 16. Ngxe4 {[%emt 0:06:01]} Nxe4 {[%emt 0:01:02]} 17. Bxe4 {[%emt 0:00:21]} Bf5 {[%emt 0:01:15]} 18. Bxf5 {[%emt 0:02:45]} Qxf5 {[%emt 0:00:12]} 19. Qxf5 {[%emt 0:01:38]} Nxf5 {[%emt 0:00:06]} 20. Rd7 {[%emt 0:00:07]} Rab8 {[%emt 0:02:28]} 21. Rhd1 {[%emt 0:01:15]} h5 {[%emt 0:05:23]} 22. R1d5 {[%emt 0:08:05]} g6 {[%emt 0:03:13]} 23. Rb5 {[%emt 0:02:05]} Rfe8 {[%emt 0:04:01]} 24. Rbxb7 {[%emt 0:02:50]} Re1+ {[%emt 0:03:20]} 25. Kc2 {[%emt 0:00:18]} Rxb7 {[%emt 0:00:28]} 26. Rxb7 {[%emt 0:00:10]} Rg1 {[%emt 0:01:56]} 27. g3 {[%emt 0:01:09]} Rg2 {[%emt 0:01:39]} 28. Ne4 {[%emt 0:04:30]} Rxh2 {[%emt 0:00:28]} 29. Kd3 {[%emt 0:01:45]} a5 {[%emt 0:03:54]} 30. Ra7 {[%emt 0:00:33]} Nh6 {[%emt 0:04:01]} 31. Rxa5 {[%emt 0:28:08]} Ng4 {[%emt 0:01:32]} 32. b4 {[%emt 0:02:41]} Nxf2+ {[%emt 0:06:10]} 33. Nxf2 {[%emt 0:00:36]} Rxf2 {[%emt 0:00:03]} 34. b5 {[%emt 0:00:35]} g5 {[%emt 0:03:36]} 35. a4 {[%emt 0:04:05]} Rb2 {[%emt 0:00:42]} 36. Kc3 {[%emt 0:01:03]} Rb1 {[%emt 0:00:07]} 37. Ra6 {[%emt 0:01:54]} Kg7 {[%emt 0:04:29]} 38. Rd6 {[%emt 0:00:51]} f5 {[%emt 0:06:16]} 39. b6 {[%emt 0:00:52]} h4 {[%emt 0:06:57]} 40. gxh4 {[%emt 0:00:33]} gxh4 {[%emt 0:00:27]} 41. a5 {[%emt 0:30:18]} h3 {[%emt 0:32:20]} 42. Rd2 {[%emt 0:00:23]} Kf6 {[%emt 0:01:34]} 43. Kc4 {[%emt 0:09:00]} 1-0